[Event "Vastgota Open 2023"]
[Site "Skara stadshotell, Jarnvagsgatan 5, Skara, Sweden"]
[Date "2023.02.19"]
[Round "9.7"]
[White "Ernst, Thomas"]
[Black "Andersson, Fredrik"]
[Result "1/2-1/2"]
[TimeControl "15 minutes + 5 seconds per move from move one (Round 1 - 2) / 30 minutes + 10 seconds per move from move one (Round 3 - 9)"]
[WhiteTitle "GM"]
[BlackTitle "FM"]
[WhiteFideId "1700065"]
[BlackFideId "1706187"]
[WhiteElo "2315"]
[BlackElo "2194"]

1. d4 {[%clk 00:30:17]} {[%emt 00:00:02]} d5 {[%clk 00:30:17]} {[%emt
00:00:04]} 2. c4 {[%clk 00:30:24]} {[%emt 00:00:03]} e6 {[%clk 00:30:24]}
{[%emt 00:00:03]} 3. Nc3 {[%clk 00:30:31]} {[%emt 00:00:03]} Nf6 {[%clk
00:30:29]} {[%emt 00:00:03]} 4. Bg5 {[%clk 00:30:33]} {[%emt 00:00:09]} Be7
{[%clk 00:30:14]} {[%emt 00:00:25]} 5. e3 {[%clk 00:30:30]} {[%emt 00:00:13]}
O-O {[%clk 00:30:11]} {[%emt 00:00:13]} 6. Nf3 {[%clk 00:30:30]} {[%emt
00:00:11]} h6 {[%clk 00:30:16]} {[%emt 00:00:04]} 7. Bh4 {[%clk 00:30:35]}
{[%emt 00:00:05]} Ne4 {[%clk 00:29:45]} {[%emt 00:00:41]} 8. Bxe7 {[%clk
00:30:35]} {[%emt 00:00:11]} Qxe7 {[%clk 00:29:53]} {[%emt 00:00:01]} 9. cxd5
{[%clk 00:30:30]} {[%emt 00:00:15]} Nxc3 {[%clk 00:29:38]} {[%emt 00:00:25]} 10.
bxc3 {[%clk 00:30:36]} {[%emt 00:00:04]} exd5 {[%clk 00:29:46]} {[%emt
00:00:02]} 11. Qb3 {[%clk 00:30:40]} {[%emt 00:00:07]} c6 {[%clk 00:26:40]}
{[%emt 00:03:16]} 12. c4 {[%clk 00:30:15]} {[%emt 00:00:34]} Be6 {[%clk
00:25:46]} {[%emt 00:01:04]} 13. Ne5 {[%clk 00:28:36]} {[%emt 00:01:48]} Nd7
{[%clk 00:19:44]} {[%emt 00:06:13]} 14. Nxd7 {[%clk 00:28:43]} {[%emt
00:00:04]} Qxd7 {[%clk 00:19:47]} {[%emt 00:00:06]} 15. c5 {[%clk 00:28:50]}
{[%emt 00:00:04]} b6 {[%clk 00:19:34]} {[%emt 00:00:23]} 16. Qa3 {[%clk
00:28:48]} {[%emt 00:00:10]} Bf5 {[%clk 00:18:22]} {[%emt 00:01:24]} 17. Be2
{[%clk 00:28:37]} {[%emt 00:00:19]} Rfe8 {[%clk 00:16:23]} {[%emt 00:02:10]} 18.
O-O {[%clk 00:28:34]} {[%emt 00:00:12]} b5 {[%clk 00:16:09]} {[%emt 00:00:25]}
19. Qa5 {[%clk 00:27:56]} {[%emt 00:00:47]} Re6 {[%clk 00:15:58]} {[%emt
00:00:22]} 20. a4 {[%clk 00:26:51]} {[%emt 00:01:15]} bxa4 {[%clk 00:15:52]}
{[%emt 00:00:17]} 21. Qxa4 {[%clk 00:24:20]} {[%emt 00:02:41]} Rg6 {[%clk
00:15:48]} {[%emt 00:00:14]} 22. Kh1 {[%clk 00:23:39]} {[%emt 00:00:49]} Be4
{[%clk 00:13:49]} {[%emt 00:02:10]} 23. f3 {[%clk 00:22:37]} {[%emt 00:01:12]}
Bf5 {[%clk 00:13:59]} {[%emt 00:00:01]} 24. g4 {[%clk 00:22:06]} {[%emt
00:00:40]} Be6 {[%clk 00:14:07]} {[%emt 00:00:02]} 25. Bd3 {[%clk 00:22:00]}
{[%emt 00:00:15]} f5 {[%clk 00:13:47]} {[%emt 00:00:31]} 26. Qc2 {[%clk
00:21:39]} {[%emt 00:00:31]} Rf6 {[%clk 00:13:55]} {[%emt 00:00:03]} 27. gxf5
{[%clk 00:21:19]} {[%emt 00:00:30]} Bxf5 {[%clk 00:14:04]} 28. Bxf5 {[%clk
00:21:26]} {[%emt 00:00:02]} Rxf5 {[%clk 00:14:12]} {[%emt 00:00:02]} 29. Qd3
{[%clk 00:19:55]} {[%emt 00:01:42]} Raf8 {[%clk 00:13:38]} {[%emt 00:00:43]} 30.
f4 {[%clk 00:19:10]} {[%emt 00:00:55]} Qe7 {[%clk 00:13:08]} {[%emt 00:00:40]}
31. Ra6 {[%clk 00:16:59]} {[%emt 00:02:21]} R5f6 {[%clk 00:10:43]} {[%emt
00:02:35]} 32. Rg1 {[%clk 00:15:58]} {[%emt 00:01:11]} Re6 {[%clk 00:10:22]}
{[%emt 00:00:32]} 33. Rg3 {[%clk 00:15:51]} {[%emt 00:00:16]} Re8 {[%clk
00:10:01]} {[%emt 00:00:31]} 34. f5 {[%clk 00:14:15]} {[%emt 00:01:45]} Rxe3
{[%clk 00:10:01]} {[%emt 00:00:12]} 35. Rxe3 {[%clk 00:14:24]} {[%emt
00:00:01]} Qxe3 {[%clk 00:10:09]} {[%emt 00:00:02]} 36. Qxe3 {[%clk 00:14:32]}
Rxe3 {[%clk 00:10:17]} {[%emt 00:00:02]} 37. Rxc6 {[%clk 00:14:33]} {[%emt
00:00:09]} Rd3 {[%clk 00:10:05]} {[%emt 00:00:22]} 38. Ra6 {[%clk 00:14:05]}
{[%emt 00:00:37]} Rxd4 {[%clk 00:10:10]} {[%emt 00:00:07]} 39. Rxa7 {[%clk
00:14:12]} {[%emt 00:00:03]} Rc4 {[%clk 00:09:14]} {[%emt 00:01:06]} 1/2-1/2

[Event "Vastgota Open 2023"]
[Site "Skara stadshotell, Jarnvagsgatan 5, Skara, Sweden"]
[Date "2023.02.19"]
[Round "9.8"]
[White "Poley, Vladimir"]
[Black "Rasti, Arvin"]
[Result "1-0"]
[TimeControl "15 minutes + 5 seconds per move from move one (Round 1 - 2) / 30 minutes + 10 seconds per move from move one (Round 3 - 9)"]
[WhiteTitle "IM"]
[WhiteFideId "13500090"]
[BlackFideId "1741160"]
[WhiteElo "2270"]
[BlackElo "2179"]

1. Nf3 {[%clk 00:30:18]} {[%emt 00:00:01]} Nf6 {[%clk 00:30:19]} {[%emt
00:00:02]} 2. c4 {[%clk 00:30:23]} {[%emt 00:00:05]} g6 {[%clk 00:30:10]}
{[%emt 00:00:19]} 3. b4 {[%clk 00:30:31]} {[%emt 00:00:02]} Bg7 {[%clk
00:30:14]} {[%emt 00:00:06]} 4. Bb2 {[%clk 00:30:40]} O-O {[%clk 00:30:09]}
{[%emt 00:00:16]} 5. g3 {[%clk 00:30:45]} {[%emt 00:00:06]} c6 {[%clk
00:30:08]} {[%emt 00:00:10]} 6. Bg2 {[%clk 00:30:45]} {[%emt 00:00:09]} d5
{[%clk 00:30:15]} {[%emt 00:00:03]} 7. Na3 {[%clk 00:30:47]} {[%emt 00:00:09]}
a5 {[%clk 00:29:46]} {[%emt 00:00:38]} 8. b5 {[%clk 00:30:54]} {[%emt
00:00:03]} Be6 {[%clk 00:27:54]} {[%emt 00:02:03]} 9. cxd5 {[%clk 00:29:56]}
{[%emt 00:01:08]} Bxd5 {[%clk 00:27:55]} {[%emt 00:00:09]} 10. O-O {[%clk
00:30:01]} {[%emt 00:00:05]} Nbd7 {[%clk 00:26:14]} {[%emt 00:01:51]} 11. d3
{[%clk 00:29:45]} {[%emt 00:00:25]} cxb5 {[%clk 00:25:24]} {[%emt 00:01:01]} 12.
Nxb5 {[%clk 00:29:49]} {[%emt 00:00:05]} e5 {[%clk 00:25:14]} {[%emt 00:00:21]}
13. Ba3 {[%clk 00:29:22]} {[%emt 00:00:37]} Re8 {[%clk 00:25:19]} {[%emt
00:00:04]} 14. Nd6 {[%clk 00:29:13]} {[%emt 00:00:20]} Re7 {[%clk 00:24:51]}
{[%emt 00:00:38]} 15. e4 {[%clk 00:29:10]} {[%emt 00:00:13]} Bc6 {[%clk
00:24:34]} {[%emt 00:00:27]} 16. Rb1 {[%clk 00:28:31]} {[%emt 00:00:49]} Rb8
{[%clk 00:24:31]} {[%emt 00:00:13]} 17. Nc4 {[%clk 00:27:10]} {[%emt 00:01:31]}
Re8 {[%clk 00:24:30]} {[%emt 00:00:11]} 18. Bd6 {[%clk 00:27:13]} {[%emt
00:00:06]} Rc8 {[%clk 00:22:38]} {[%emt 00:02:02]} 19. Ncxe5 {[%clk 00:27:08]}
{[%emt 00:00:16]} Nxe5 {[%clk 00:22:33]} {[%emt 00:00:15]} 20. Bxe5 {[%clk
00:27:15]} {[%emt 00:00:04]} b5 {[%clk 00:20:58]} {[%emt 00:01:44]} 21. Ba1
{[%clk 00:25:51]} {[%emt 00:01:33]} b4 {[%clk 00:20:49]} {[%emt 00:00:19]} 22.
Re1 {[%clk 00:25:12]} {[%emt 00:00:49]} Bb5 {[%clk 00:20:34]} {[%emt 00:00:26]}
23. Nd4 {[%clk 00:25:12]} {[%emt 00:00:09]} Bd7 {[%clk 00:20:11]} {[%emt
00:00:34]} 24. e5 {[%clk 00:24:57]} {[%emt 00:00:25]} Ng4 {[%clk 00:19:50]}
{[%emt 00:00:30]} 25. e6 {[%clk 00:24:16]} {[%emt 00:00:52]} fxe6 {[%clk
00:19:05]} {[%emt 00:00:54]} 26. Qxg4 {[%clk 00:24:16]} {[%emt 00:00:10]} e5
{[%clk 00:19:13]} {[%emt 00:00:03]} 27. Qe4 {[%clk 00:24:12]} {[%emt 00:00:13]}
exd4 {[%clk 00:19:04]} {[%emt 00:00:21]} 28. Qd5+ {[%clk 00:24:20]} {[%emt
00:00:01]} Kh8 {[%clk 00:18:45]} {[%emt 00:00:29]} 29. Bxd4 {[%clk 00:24:17]}
{[%emt 00:00:13]} Bf5 {[%clk 00:15:26]} {[%emt 00:03:28]} 30. Rxe8+ {[%clk
00:23:56]} {[%emt 00:00:31]} Qxe8 {[%clk 00:15:35]} 31. Bxg7+ {[%clk 00:22:51]}
{[%emt 00:01:15]} Kxg7 {[%clk 00:15:43]} {[%emt 00:00:02]} 32. Qd4+ {[%clk
00:22:52]} {[%emt 00:00:10]} Kh6 {[%clk 00:15:43]} {[%emt 00:00:09]} 33. g4
{[%clk 00:22:51]} {[%emt 00:00:11]} Bd7 {[%clk 00:15:21]} {[%emt 00:00:33]} 34.
h4 {[%clk 00:22:53]} {[%emt 00:00:07]} Qf7 {[%clk 00:12:50]} {[%emt 00:02:42]}
35. Bd5 {[%clk 00:18:57]} {[%emt 00:04:06]} Qf8 {[%clk 00:11:44]} {[%emt
00:01:16]} 36. Kg2 {[%clk 00:10:14]} {[%emt 00:08:52]} Bc6 {[%clk 00:11:26]}
{[%emt 00:00:29]} 37. Kh3 {[%clk 00:10:15]} {[%emt 00:00:08]} Bd7 {[%clk
00:11:04]} {[%emt 00:00:33]} 38. Kg3 {[%clk 00:08:37]} {[%emt 00:01:48]} Qd6+
{[%clk 00:10:04]} {[%emt 00:01:10]} 39. Qf4+ {[%clk 00:06:52]} {[%emt
00:01:54]} Qxf4+ 40. Kxf4 {[%clk 00:07:01]} Rc2 {[%clk 00:09:16]} {[%emt
00:01:00]} 41. f3 {[%clk 00:06:59]} {[%emt 00:00:13]} Rd2 {[%clk 00:08:05]}
{[%emt 00:01:20]} 42. Re1 {[%clk 00:06:15]} {[%emt 00:00:53]} Rxd3 {[%clk
00:03:28]} {[%emt 00:04:48]} 43. Re7 {[%clk 00:06:12]} {[%emt 00:00:13]} Bxg4
{[%clk 00:02:51]} {[%emt 00:00:47]} 44. fxg4 {[%clk 00:06:08]} {[%emt
00:00:13]} Rd4+ {[%clk 00:02:40]} {[%emt 00:00:21]} 45. Be4 {[%clk 00:06:14]}
1-0

[Event "Vastgota Open 2023"]
[Site "Skara stadshotell, Jarnvagsgatan 5, Skara, Sweden"]
[Date "2023.02.19"]
[Round "9.9"]
[White "Bjorkeroth, Johan"]
[Black "Bellon Lopez, Juan Manuel"]
[Result "0-1"]
[TimeControl "15 minutes + 5 seconds per move from move one (Round 1 - 2) / 30 minutes + 10 seconds per move from move one (Round 3 - 9)"]
[BlackTitle "GM"]
[WhiteFideId "1719106"]
[BlackFideId "2200031"]
[WhiteElo "2032"]
[BlackElo "2318"]

1. Nf3 {[%clk 00:29:48]} {[%emt 00:00:31]} c5 {[%clk 00:30:11]} {[%emt
00:00:10]} 2. c4 {[%clk 00:29:53]} {[%emt 00:00:05]} Nc6 {[%clk 00:29:56]}
{[%emt 00:00:25]} 3. Nc3 {[%clk 00:29:57]} {[%emt 00:00:05]} Nd4 {[%clk
00:29:54]} {[%emt 00:00:13]} 4. e3 {[%clk 00:28:52]} {[%emt 00:01:15]} Nxf3+
{[%clk 00:30:01]} {[%emt 00:00:03]} 5. Qxf3 {[%clk 00:28:59]} {[%emt 00:00:03]}
g6 {[%clk 00:30:09]} {[%emt 00:00:02]} 6. b3 {[%clk 00:28:37]} {[%emt
00:00:32]} Bg7 {[%clk 00:30:14]} {[%emt 00:00:05]} 7. Bb2 {[%clk 00:28:45]}
{[%emt 00:00:02]} Rb8 {[%clk 00:28:55]} {[%emt 00:01:28]} 8. Rd1 {[%clk
00:25:38]} {[%emt 00:03:17]} Nh6 {[%clk 00:28:00]} {[%emt 00:01:06]} 9. Bd3
{[%clk 00:23:35]} {[%emt 00:02:12]} d6 {[%clk 00:27:38]} {[%emt 00:00:33]} 10.
Qg3 {[%clk 00:16:54]} {[%emt 00:06:51]} O-O {[%clk 00:24:41]} {[%emt 00:03:07]}
11. h4 {[%clk 00:17:00]} {[%emt 00:00:04]} Nf5 {[%clk 00:22:47]} {[%emt
00:02:04]} 12. Bxf5 {[%clk 00:16:50]} {[%emt 00:00:20]} Bxf5 {[%clk 00:22:56]}
{[%emt 00:00:01]} 13. h5 {[%clk 00:16:42]} {[%emt 00:00:18]} b5 {[%clk
00:12:59]} {[%emt 00:10:08]} 14. hxg6 {[%clk 00:14:29]} {[%emt 00:02:23]} Bxg6
{[%clk 00:12:19]} {[%emt 00:00:50]} 15. f4 {[%clk 00:10:25]} {[%emt 00:04:13]}
bxc4 {[%clk 00:09:25]} {[%emt 00:03:04]} 16. f5 {[%clk 00:05:55]} {[%emt
00:04:40]} Bxf5 {[%clk 00:09:35]} 17. Nd5 {[%clk 00:05:36]} {[%emt 00:00:27]}
e5 {[%clk 00:08:35]} {[%emt 00:01:12]} 18. Bc3 {[%clk 00:04:29]} {[%emt
00:01:18]} cxb3 {[%clk 00:07:42]} {[%emt 00:01:03]} 19. Ba5 {[%clk 00:04:10]}
{[%emt 00:00:29]} Rb6 {[%clk 00:07:08]} {[%emt 00:00:43]} 20. Bxb6 {[%clk
00:02:42]} {[%emt 00:01:39]} axb6 {[%clk 00:07:17]} 21. axb3 {[%clk 00:02:49]}
{[%emt 00:00:02]} Bc2 {[%clk 00:05:07]} {[%emt 00:02:21]} 22. Ra1 {[%clk
00:02:58]} {[%emt 00:00:01]} Be4 {[%clk 00:04:05]} {[%emt 00:01:12]} 23. Nc3
{[%clk 00:02:21]} {[%emt 00:00:47]} Bg6 {[%clk 00:04:13]} {[%emt 00:00:01]} 24.
e4 {[%clk 00:02:14]} {[%emt 00:00:17]} f5 {[%clk 00:03:55]} {[%emt 00:00:28]}
25. exf5 {[%clk 00:01:48]} {[%emt 00:00:36]} Rxf5 {[%clk 00:04:04]} {[%emt
00:00:01]} 26. Ra7 {[%clk 00:01:34]} {[%emt 00:00:23]} d5 {[%clk 00:03:33]}
{[%emt 00:00:42]} 27. Nb5 {[%clk 00:00:55]} {[%emt 00:00:49]} e4 {[%clk
00:01:25]} {[%emt 00:02:18]} 28. Nc7 {[%clk 00:00:37]} {[%emt 00:00:28]} Be5
{[%clk 00:01:32]} {[%emt 00:00:04]} 29. Qxe5 {[%clk 00:00:13]} {[%emt
00:00:34]} Rxe5 {[%clk 00:01:39]} {[%emt 00:00:02]} 30. Ra8 {[%clk 00:00:22]}
Qxa8 31. Nxa8 {[%clk 00:00:31]} b5 {[%clk 00:01:29]} {[%emt 00:00:26]} 32. Nc7
{[%clk 00:00:30]} {[%emt 00:00:11]} b4 {[%clk 00:01:31]} {[%emt 00:00:08]} 33.
Ke2 {[%clk 00:00:25]} {[%emt 00:00:15]} Rg5 {[%clk 00:01:21]} {[%emt 00:00:20]}
34. Kf2 {[%clk 00:00:26]} {[%emt 00:00:08]} Bf7 {[%clk 00:01:15]} {[%emt
00:00:16]} 35. Rc1 {[%clk 00:00:29]} {[%emt 00:00:09]} c4 {[%clk 00:01:23]}
{[%emt 00:00:02]} 36. Na6 {[%clk 00:00:26]} {[%emt 00:00:13]} cxb3 {[%clk
00:01:28]} {[%emt 00:00:04]} 37. Nxb4 {[%clk 00:00:28]} {[%emt 00:00:08]} d4
{[%clk 00:01:09]} {[%emt 00:00:30]} 38. Nc6 {[%clk 00:00:26]} {[%emt 00:00:12]}
Rf5+ {[%clk 00:00:48]} {[%emt 00:00:31]} 39. Kg3 {[%clk 00:00:33]} {[%emt
00:00:03]} Rb5 {[%clk 00:00:50]} {[%emt 00:00:07]} 40. Nxd4 {[%clk 00:00:19]}
{[%emt 00:00:24]} b2 {[%clk 00:00:45]} {[%emt 00:00:16]} 41. Rc8+ {[%clk
00:00:14]} {[%emt 00:00:15]} Kg7 {[%clk 00:00:48]} {[%emt 00:00:07]} 42. Nf5+
{[%clk 00:00:23]} {[%emt 00:00:01]} Kf6 {[%clk 00:00:36]} {[%emt 00:00:21]} 0-1

[Event "Vastgota Open 2023"]
[Site "Skara stadshotell, Jarnvagsgatan 5, Skara, Sweden"]
[Date "2023.02.19"]
[Round "9.10"]
[White "Trost, Edvin"]
[Black "Evertsson, Lennart"]
[Result "1-0"]
[TimeControl "15 minutes + 5 seconds per move from move one (Round 1 - 2) / 30 minutes + 10 seconds per move from move one (Round 3 - 9)"]
[WhiteTitle "FM"]
[WhiteFideId "1729519"]
[BlackFideId "1705156"]
[WhiteElo "2226"]
[BlackElo "2095"]

1. d4 {[%clk 00:30:17]} {[%emt 00:00:02]} Nf6 {[%clk 00:30:14]} {[%emt
00:00:07]} 2. Nc3 {[%clk 00:30:24]} {[%emt 00:00:03]} d5 {[%clk 00:30:17]}
{[%emt 00:00:06]} 3. Bf4 {[%clk 00:30:32]} {[%emt 00:00:03]} Bf5 {[%clk
00:29:59]} {[%emt 00:00:28]} 4. e3 {[%clk 00:30:32]} {[%emt 00:00:10]} e6
{[%clk 00:29:04]} {[%emt 00:01:05]} 5. Bd3 {[%clk 00:30:31]} {[%emt 00:00:11]}
Bxd3 {[%clk 00:27:56]} {[%emt 00:01:17]} 6. cxd3 {[%clk 00:30:31]} {[%emt
00:00:11]} Bd6 {[%clk 00:27:39]} {[%emt 00:00:27]} 7. Nge2 {[%clk 00:30:04]}
{[%emt 00:00:36]} O-O {[%clk 00:27:14]} {[%emt 00:00:36]} 8. O-O {[%clk
00:29:30]} {[%emt 00:00:44]} Nc6 {[%clk 00:26:03]} {[%emt 00:01:21]} 9. Qb3
{[%clk 00:27:57]} {[%emt 00:01:43]} Rb8 {[%clk 00:25:30]} {[%emt 00:00:42]} 10.
Rac1 {[%clk 00:27:04]} {[%emt 00:01:04]} a6 {[%clk 00:24:42]} {[%emt 00:00:57]}
11. Rfd1 {[%clk 00:26:06]} {[%emt 00:01:08]} Re8 {[%clk 00:24:30]} {[%emt
00:00:22]} 12. h3 {[%clk 00:25:25]} {[%emt 00:00:52]} h6 {[%clk 00:23:31]}
{[%emt 00:01:08]} 13. a3 {[%clk 00:24:42]} {[%emt 00:00:54]} e5 {[%clk
00:21:04]} {[%emt 00:02:37]} 14. dxe5 {[%clk 00:24:48]} {[%emt 00:00:05]} Bxe5
{[%clk 00:21:11]} {[%emt 00:00:01]} 15. d4 {[%clk 00:24:37]} {[%emt 00:00:22]}
Bxf4 {[%clk 00:20:48]} {[%emt 00:00:33]} 16. Nxf4 {[%clk 00:24:46]} {[%emt
00:00:01]} Ne7 {[%clk 00:20:46]} {[%emt 00:00:12]} 17. Na4 {[%clk 00:22:43]}
{[%emt 00:02:14]} g5 {[%clk 00:18:52]} {[%emt 00:02:02]} 18. Nd3 {[%clk
00:22:33]} {[%emt 00:00:20]} Ng6 {[%clk 00:18:22]} {[%emt 00:00:40]} 19. Ne5
{[%clk 00:19:15]} {[%emt 00:03:28]} Nf8 {[%clk 00:16:27]} {[%emt 00:02:05]} 20.
Qc2 {[%clk 00:18:33]} {[%emt 00:00:53]} c6 {[%clk 00:16:14]} {[%emt 00:00:23]}
21. Nc5 {[%clk 00:18:18]} {[%emt 00:00:25]} Ne6 {[%clk 00:14:52]} {[%emt
00:01:31]} 22. b4 {[%clk 00:18:10]} {[%emt 00:00:19]} Qd6 {[%clk 00:13:54]}
{[%emt 00:01:08]} 23. a4 {[%clk 00:17:30]} {[%emt 00:00:51]} Re7 {[%clk
00:13:26]} {[%emt 00:00:36]} 24. Rd3 {[%clk 00:14:29]} {[%emt 00:03:12]} Kg7
{[%clk 00:11:12]} {[%emt 00:02:24]} 25. Rb3 {[%clk 00:14:28]} {[%emt 00:00:11]}
Rg8 {[%clk 00:07:57]} {[%emt 00:03:24]} 26. Ra1 {[%clk 00:14:09]} {[%emt
00:00:30]} Nh7 {[%clk 00:05:35]} {[%emt 00:02:32]} 27. Nxe6+ {[%clk 00:13:53]}
{[%emt 00:00:26]} Qxe6 {[%clk 00:05:12]} {[%emt 00:00:33]} 28. b5 {[%clk
00:13:50]} {[%emt 00:00:13]} cxb5 {[%clk 00:04:48]} {[%emt 00:00:34]} 29. axb5
{[%clk 00:13:56]} {[%emt 00:00:04]} f6 {[%clk 00:04:24]} {[%emt 00:00:33]} 30.
Nd3 {[%clk 00:13:20]} {[%emt 00:00:46]} Rc8 {[%clk 00:02:55]} {[%emt 00:01:40]}
31. Rc3 {[%clk 00:13:00]} {[%emt 00:00:31]} Ra8 {[%clk 00:02:31]} {[%emt
00:00:34]} 32. Rc7 {[%clk 00:12:52]} {[%emt 00:00:18]} Qf7 {[%clk 00:02:21]}
{[%emt 00:00:19]} 33. Rxe7 {[%clk 00:12:32]} {[%emt 00:00:30]} Qxe7 {[%clk
00:02:29]} {[%emt 00:00:02]} 34. Qc5 {[%clk 00:12:32]} {[%emt 00:00:11]} Qxc5
{[%clk 00:02:02]} {[%emt 00:00:36]} 35. Nxc5 {[%clk 00:12:39]} {[%emt
00:00:02]} a5 {[%clk 00:01:42]} {[%emt 00:00:30]} 36. Ne6+ {[%clk 00:12:13]}
{[%emt 00:00:36]} Kf7 {[%clk 00:01:38]} {[%emt 00:00:14]} 37. Nc7 {[%clk
00:12:21]} {[%emt 00:00:02]} 1-0

[Event "Vastgota Open 2023"]
[Site "Skara stadshotell, Jarnvagsgatan 5, Skara, Sweden"]
[Date "2023.02.19"]
[Round "9.11"]
[White "Eklund, Lars-Goran"]
[Black "Sundstrom, Bjorn"]
[Result "1-0"]
[TimeControl "15 minutes + 5 seconds per move from move one (Round 1 - 2) / 30 minutes + 10 seconds per move from move one (Round 3 - 9)"]
[WhiteTitle "FM"]
[WhiteFideId "1701010"]
[BlackFideId "1712071"]
[WhiteElo "2196"]
[BlackElo "2003"]

1. Nf3 {[%clk 00:30:17]} {[%emt 00:00:02]} f5 {[%clk 00:30:05]} {[%emt
00:00:15]} 2. e4 {[%clk 00:29:44]} {[%emt 00:00:43]} fxe4 {[%clk 00:28:40]}
{[%emt 00:01:35]} 3. Ng5 {[%clk 00:29:53]} {[%emt 00:00:02]} e5 {[%clk
00:26:00]} {[%emt 00:02:49]} 4. d3 {[%clk 00:29:27]} {[%emt 00:00:37]} e3
{[%clk 00:23:50]} {[%emt 00:02:19]} 5. Bxe3 {[%clk 00:28:23]} {[%emt 00:01:15]}
Be7 {[%clk 00:18:43]} {[%emt 00:05:16]} 6. h4 {[%clk 00:23:52]} {[%emt
00:04:41]} Nf6 {[%clk 00:18:06]} {[%emt 00:00:47]} 7. d4 {[%clk 00:23:07]}
{[%emt 00:00:56]} e4 {[%clk 00:10:18]} {[%emt 00:07:57]} 8. c4 {[%clk
00:23:06]} {[%emt 00:00:11]} h6 {[%clk 00:09:27]} {[%emt 00:01:01]} 9. Nh3
{[%clk 00:22:43]} {[%emt 00:00:34]} d5 {[%clk 00:07:53]} {[%emt 00:01:43]} 10.
Nf4 {[%clk 00:20:17]} {[%emt 00:02:37]} O-O {[%clk 00:06:43]} {[%emt 00:01:18]}
11. Be2 {[%clk 00:17:49]} {[%emt 00:02:40]} c6 {[%clk 00:04:24]} {[%emt
00:02:29]} 12. Nc3 {[%clk 00:17:19]} {[%emt 00:00:39]} Kh7 {[%clk 00:04:09]}
{[%emt 00:00:25]} 13. Qb3 {[%clk 00:12:18]} {[%emt 00:05:11]} dxc4 {[%clk
00:03:56]} {[%emt 00:00:23]} 14. Qxc4 {[%clk 00:12:09]} {[%emt 00:00:20]} b5
{[%clk 00:03:40]} {[%emt 00:00:25]} 15. Qb3 {[%clk 00:12:05]} {[%emt 00:00:14]}
b4 {[%clk 00:03:40]} {[%emt 00:00:09]} 16. Nxe4 {[%clk 00:07:26]} Nd5 {[%clk
00:01:56]} {[%emt 00:06:44]} 17. Nxd5 {[%clk 00:06:20]} {[%emt 00:01:16]} cxd5
{[%clk 00:02:02]} {[%emt 00:00:04]} 18. Ng3 {[%clk 00:05:59]} {[%emt 00:00:31]}
Be6 {[%clk 00:01:14]} {[%emt 00:00:58]} 19. Nh5 {[%clk 00:04:32]} {[%emt
00:01:38]} Qd6 {[%clk 00:01:02]} {[%emt 00:00:22]} 20. Qc2+ {[%clk 00:03:50]}
{[%emt 00:00:51]} Kg8 {[%clk 00:01:08]} {[%emt 00:00:03]} 21. Qg6 {[%clk
00:02:18]} {[%emt 00:01:44]} Rf7 {[%clk 00:00:28]} {[%emt 00:00:50]} 22. Bxh6
{[%clk 00:01:43]} {[%emt 00:00:45]} Bf5 {[%clk 00:00:29]} {[%emt 00:00:09]} 23.
Qxd6 Bxd6 {[%clk 00:00:38]} 24. Be3 {[%clk 00:01:39]} {[%emt 00:00:14]} Nd7
{[%clk 00:00:31]} {[%emt 00:00:17]} 25. Kd2 {[%clk 00:01:18]} {[%emt 00:00:31]}
Nb6 {[%clk 00:00:36]} {[%emt 00:00:05]} 26. b3 {[%clk 00:01:23]} {[%emt
00:00:05]} a5 {[%clk 00:00:33]} {[%emt 00:00:13]} 27. Rac1 {[%clk 00:01:21]}
{[%emt 00:00:12]} a4 {[%clk 00:00:41]} {[%emt 00:00:02]} 28. Bd3 {[%clk
00:01:19]} {[%emt 00:00:12]} axb3 {[%clk 00:00:45]} {[%emt 00:00:06]} 29. axb3
{[%clk 00:01:27]} Ra2+ {[%clk 00:00:54]} {[%emt 00:00:02]} 30. Rc2 {[%clk
00:01:36]} Rxc2+ {[%clk 00:01:00]} {[%emt 00:00:05]} 31. Bxc2 {[%clk 00:01:37]}
{[%emt 00:00:09]} Bxc2 {[%clk 00:00:52]} {[%emt 00:00:18]} 32. Kxc2 {[%clk
00:01:46]} {[%emt 00:00:01]} Rc7+ {[%clk 00:01:01]} 33. Kb2 {[%clk 00:01:49]}
{[%emt 00:00:07]} g6 {[%clk 00:00:50]} {[%emt 00:00:31]} 34. Nf6+ {[%clk
00:01:54]} {[%emt 00:00:15]} Kf7 {[%clk 00:00:59]} 35. Ng4 {[%clk 00:02:04]}
Ke6 {[%clk 00:00:44]} {[%emt 00:00:26]} 36. Re1 {[%clk 00:01:51]} {[%emt
00:00:22]} Kf5 {[%clk 00:00:45]} {[%emt 00:00:08]} 37. f3 {[%clk 00:01:36]}
{[%emt 00:00:25]} Bg3 {[%clk 00:00:53]} {[%emt 00:00:02]} 38. Re2 {[%clk
00:01:37]} {[%emt 00:00:10]} Bxh4 {[%clk 00:00:59]} {[%emt 00:00:04]} 39. Bd2
{[%clk 00:01:40]} {[%emt 00:00:07]} Nd7 {[%clk 00:01:02]} {[%emt 00:00:07]} 40.
Bxb4 {[%clk 00:01:42]} {[%emt 00:00:08]} Bf6 {[%clk 00:00:57]} {[%emt
00:00:15]} 41. Bc3 {[%clk 00:01:26]} {[%emt 00:00:25]} Bg7 {[%clk 00:01:01]}
{[%emt 00:00:07]} 42. Ne3+ {[%emt 00:00:12]} Ke6 43. g4 {[%clk 00:01:26]}
{[%emt 00:00:08]} Kd6 {[%clk 00:01:13]} {[%emt 00:00:07]} 44. Bb4+ {[%clk
00:01:20]} {[%emt 00:00:15]} Kc6 {[%clk 00:01:14]} {[%emt 00:00:05]} 45. Rc2+
{[%clk 00:01:28]} {[%emt 00:00:06]} Kb7 {[%clk 00:01:23]} 46. Rxc7+ {[%clk
00:01:34]} {[%emt 00:00:05]} Kxc7 {[%clk 00:01:31]} {[%emt 00:00:03]} 47. Nxd5+
{[%clk 00:01:43]} {[%emt 00:00:01]} Kc6 {[%clk 00:01:33]} {[%emt 00:00:08]} 48.
Ne7+ {[%clk 00:01:52]} {[%emt 00:00:01]} Kb5 {[%clk 00:01:42]} 49. Bc3 {[%clk
00:01:45]} {[%emt 00:00:16]} g5 {[%clk 00:01:51]} {[%emt 00:00:02]} 50. Kc2
{[%clk 00:01:47]} {[%emt 00:00:08]} Nb6 {[%clk 00:01:45]} {[%emt 00:00:15]} 51.
Kd3 {[%clk 00:01:55]} {[%emt 00:00:03]} Bf6 {[%clk 00:01:48]} {[%emt 00:00:07]}
52. Ng8 {[%clk 00:01:53]} {[%emt 00:00:12]} Bg7 {[%clk 00:01:49]} {[%emt
00:00:07]} 53. Ke4 {[%clk 00:02:01]} {[%emt 00:00:03]} Kc6 {[%clk 00:01:51]}
{[%emt 00:00:09]} 54. d5+ {[%clk 00:02:02]} {[%emt 00:00:09]} 1-0